[Event "Titled Tuesday Blitz July 26 Late 2022"]
[White "Pfreundt, Jakob"]
[Black "Voege, Tobias"]
[WhiteFideId "12918156"]
[BlackFideId "1270513"]
[WhiteElo "2345"]
[BlackElo "2379"]
[Result "1-0"]
[Round "09"]
[TimeControl "180+1"]
[Date "2022.07.27"]
[WhiteClock "0:00:13"]
[BlackClock "0:00:03"]

1. Nf3 {[%clk 0:03:00]}  Nf6 {[%clk 0:02:55]} 2. d4 {[%clk 0:02:59]}  g6 {[%clk 0:02:54]} 3. g3 {[%clk 0:02:58]}  Bg7 {[%clk 0:02:54]} 4. Bg2 {[%clk 0:02:58]}  O-O {[%clk 0:02:54]} 5. O-O {[%clk 0:02:59]}  d6 {[%clk 0:02:52]} 6. Nc3 {[%clk 0:03:00]}  c5 {[%clk 0:02:51]} 7. dxc5 {[%clk 0:02:59]}  dxc5 {[%clk 0:02:52]} 8. Qxd8 {[%clk 0:02:59]}  Rxd8 {[%clk 0:02:53]} 9. Ne5 {[%clk 0:03:00]}  Nfd7 {[%clk 0:02:38]} 10. Nc4 {[%clk 0:02:46]}  Nc6 {[%clk 0:02:25]} 11. Rd1 {[%clk 0:02:33]}  Nde5 {[%clk 0:01:54]} 12. Rxd8+ {[%clk 0:02:28]}  Nxd8 {[%clk 0:01:54]} 13. Na5 {[%clk 0:02:00]}  Ndc6 {[%clk 0:01:15]} 14. Nxc6 {[%clk 0:02:00]}  Nxc6 {[%clk 0:01:11]} 15. Bxc6 {[%clk 0:01:58]}  bxc6 {[%clk 0:01:10]} 16. Na4 {[%clk 0:01:59]}  c4 {[%clk 0:01:05]} 17. c3 {[%clk 0:01:25]}  Bf5 {[%clk 0:00:45]} 18. Be3 {[%clk 0:01:12]}  Rd8 {[%clk 0:00:25]} 19. Rc1 {[%clk 0:01:07]}  Rd7 {[%clk 0:00:19]} 20. Nc5 {[%clk 0:01:03]}  Rd5 {[%clk 0:00:19]} 21. f3 {[%clk 0:01:00]}  Bc8 {[%clk 0:00:17]} 22. Kf2 {[%clk 0:00:58]}  f5 {[%clk 0:00:17]} 23. b4 {[%clk 0:00:48]}  cxb3 {[%clk 0:00:16]} 24. axb3 {[%clk 0:00:49]}  Kf7 {[%clk 0:00:15]} 25. b4 {[%clk 0:00:45]}  Rd8 {[%clk 0:00:12]} 26. Nb3 {[%clk 0:00:40]}  Be6 {[%clk 0:00:11]} 27. Na5 {[%clk 0:00:32]}  Rd7 {[%clk 0:00:06]} 28. Nxc6 {[%clk 0:00:27]}  Rc7 {[%clk 0:00:06]} 29. Nd8+ {[%clk 0:00:26]}  Kg8 {[%clk 0:00:04]} 30. Nxe6 {[%clk 0:00:25]}  Rxc3 {[%clk 0:00:04]} 31. Nxg7 {[%clk 0:00:24]}  Rb3 {[%clk 0:00:04]} 32. Ne6 {[%clk 0:00:22]}  Rxb4 {[%clk 0:00:03]} 33. Rc7 {[%clk 0:00:20]}  Kf7 {[%clk 0:00:02]} 34. Ng5+ {[%clk 0:00:20]}  Ke8 {[%clk 0:00:02]} 35. Rxa7 {[%clk 0:00:19]}  h5 {[%clk 0:00:02]} 36. Bc5 {[%clk 0:00:18]}  Rb2 {[%clk 0:00:01]} 37. Rxe7+ {[%clk 0:00:18]}  Kd8 {[%clk 0:00:02]} 38. Ne6+ {[%clk 0:00:18]}  Kc8 {[%clk 0:00:02]} 39. h4 {[%clk 0:00:17]}  f4 {[%clk 0:00:02]} 40. Nxf4 {[%clk 0:00:17]}  Rc2 {[%clk 0:00:03]} 41. Be3 {[%clk 0:00:16]}  Rc6 {[%clk 0:00:03]} 42. Rg7 {[%clk 0:00:16]}  Kd8 {[%clk 0:00:04]} 43. Rxg6 {[%clk 0:00:16]}  Rc2 {[%clk 0:00:04]} 44. Rg7 {[%clk 0:00:15]}  Ke8 {[%clk 0:00:05]} 45. g4 {[%clk 0:00:15]}  hxg4 {[%clk 0:00:04]} 46. fxg4 {[%clk 0:00:15]}  Kf8 {[%clk 0:00:04]} 47. Ra7 {[%clk 0:00:14]}  Kg8 {[%clk 0:00:04]} 48. h5 {[%clk 0:00:14]}  Rc6 {[%clk 0:00:03]} 49. g5 {[%clk 0:00:14]}  Rc8 {[%clk 0:00:01]} 50. h6 {[%clk 0:00:14]}  Rb8 {[%clk 0:00:02]} 51. g6 {[%clk 0:00:14]}  Rd8 {[%clk 0:00:02]} 52. h7+ {[%clk 0:00:15]}  Kh8 {[%clk 0:00:02]} 53. Bd4+ {[%clk 0:00:12]}  Rxd4 {[%clk 0:00:02]} 54. Ra8+ {[%clk 0:00:13]}  Kg7 {[%clk 0:00:03]} 55. h8=Q# {[%clk 0:00:13]} 1-0


[Site "https://www.chess.com"]

[Event "Titled Tuesday Blitz July 26 Late 2022"]
[White "Pranav, V"]
[Black "Vasquez Schroeder, Rodrigo"]
[WhiteFideId "25060783"]
[BlackFideId "3400042"]
[WhiteElo "2380"]
[BlackElo "2567"]
[Result "1-0"]
[Round "09"]
[TimeControl "180+1"]
[Date "2022.07.26"]
[WhiteClock "0:00:10"]
[BlackClock "0:00:07"]

1. e4 {[%clk 0:02:41]}  c5 {[%clk 0:02:58]} 2. Nf3 {[%clk 0:02:40]}  d6 {[%clk 0:02:58]} 3. Bb5+ {[%clk 0:02:38]}  Bd7 {[%clk 0:02:58]} 4. a4 {[%clk 0:02:39]}  Nc6 {[%clk 0:02:53]} 5. O-O {[%clk 0:02:39]}  Nf6 {[%clk 0:02:53]} 6. Re1 {[%clk 0:02:38]}  a6 {[%clk 0:02:51]} 7. Bf1 {[%clk 0:02:38]}  Bg4 {[%clk 0:02:46]} 8. c3 {[%clk 0:02:35]}  g6 {[%clk 0:02:41]} 9. h3 {[%clk 0:02:31]}  Bxf3 {[%clk 0:02:41]} 10. Qxf3 {[%clk 0:02:32]}  Bh6 {[%clk 0:02:41]} 11. Qg3 {[%clk 0:02:28]}  O-O {[%clk 0:02:36]} 12. Qh4 {[%clk 0:02:28]}  Kg7 {[%clk 0:02:13]} 13. Na3 {[%clk 0:02:26]}  e5 {[%clk 0:02:07]} 14. Nc4 {[%clk 0:02:26]}  Nh5 {[%clk 0:01:56]} 15. Qg4 {[%clk 0:02:14]}  Nf6 {[%clk 0:01:53]} 16. Qf3 {[%clk 0:02:13]}  b6 {[%clk 0:01:50]} 17. Ne3 {[%clk 0:02:02]}  Bg5 {[%clk 0:01:42]} 18. d3 {[%clk 0:01:58]}  Kh8 {[%clk 0:01:33]} 19. g3 {[%clk 0:01:44]}  h5 {[%clk 0:01:21]} 20. h4 {[%clk 0:01:28]}  Bh6 {[%clk 0:01:21]} 21. Bh3 {[%clk 0:01:28]}  Kg7 {[%clk 0:01:02]} 22. Rf1 {[%clk 0:01:19]}  Ne7 {[%clk 0:00:53]} 23. Qg2 {[%clk 0:01:17]}  d5 {[%clk 0:00:44]} 24. f4 {[%clk 0:01:14]}  dxe4 {[%clk 0:00:38]} 25. fxe5 {[%clk 0:01:07]}  Nfd5 {[%clk 0:00:26]} 26. Qxe4 {[%clk 0:01:02]}  f5 {[%clk 0:00:17]} 27. exf6+ {[%clk 0:01:02]}  Nxf6 {[%clk 0:00:17]} 28. Qe6 {[%clk 0:01:02]}  Ra7 {[%clk 0:00:16]} 29. Nc4 {[%clk 0:00:36]}  Bxc1 {[%clk 0:00:16]} 30. Raxc1 {[%clk 0:00:37]}  Ned5 {[%clk 0:00:17]} 31. Rce1 {[%clk 0:00:32]}  b5 {[%clk 0:00:15]} 32. axb5 {[%clk 0:00:24]}  axb5 {[%clk 0:00:15]} 33. Ne5 {[%clk 0:00:24]}  Re7 {[%clk 0:00:16]} 34. Qc6 {[%clk 0:00:24]}  Qb8 {[%clk 0:00:16]} 35. d4 {[%clk 0:00:23]}  cxd4 {[%clk 0:00:16]} 36. cxd4 {[%clk 0:00:24]}  Qa7 {[%clk 0:00:17]} 37. Qc5 {[%clk 0:00:20]}  Qxc5 {[%clk 0:00:17]} 38. dxc5 {[%clk 0:00:21]}  Rfe8 {[%clk 0:00:18]} 39. Nd3 {[%clk 0:00:18]}  Ne3 {[%clk 0:00:17]} 40. Rf2 {[%clk 0:00:17]}  Nfd5 {[%clk 0:00:16]} 41. Rfe2 {[%clk 0:00:15]}  Kf6 {[%clk 0:00:17]} 42. c6 {[%clk 0:00:12]}  Nc4 {[%clk 0:00:16]} 43. Rxe7 {[%clk 0:00:11]}  Rxe7 {[%clk 0:00:17]} 44. Rf1+ {[%clk 0:00:11]}  Kg7 {[%clk 0:00:16]} 45. Nc5 {[%clk 0:00:11]}  Ne5 {[%clk 0:00:10]} 46. Bd7 {[%clk 0:00:10]}  Ne3 {[%clk 0:00:08]} 47. c7 {[%clk 0:00:09]}  Nxd7 {[%clk 0:00:07]} 48. c8=Q {[%clk 0:00:09]}  Nxf1 {[%clk 0:00:07]} 49. Nxd7 {[%clk 0:00:10]}  Nxg3 {[%clk 0:00:07]} 50. Qf8+ {[%clk 0:00:10]} 1-0


[Site "https://www.chess.com"]

[Event "Titled Tuesday Blitz July 26 Late 2022"]
[White "Prydun, Andriy"]
[Black "Blanco Ronquillo, Humberto L."]
[WhiteFideId "14145898"]
[BlackFideId "3504239"]
[WhiteElo "2063"]
[BlackElo "2423"]
[Result "0-1"]
[Round "09"]
[TimeControl "180+1"]
[Date "2022.07.26"]
[WhiteClock "0:00:03"]
[BlackClock "0:00:12"]

1. e4 {[%clk 0:02:52]}  c5 {[%clk 0:02:58]} 2. Nf3 {[%clk 0:02:53]}  Nc6 {[%clk 0:02:58]} 3. Bb5 {[%clk 0:02:52]}  Nf6 {[%clk 0:02:58]} 4. d3 {[%clk 0:02:49]}  Qa5+ {[%clk 0:02:56]} 5. Nc3 {[%clk 0:02:49]}  Nd4 {[%clk 0:02:56]} 6. Bc4 {[%clk 0:02:47]}  b5 {[%clk 0:02:56]} 7. Bd5 {[%clk 0:02:44]}  Nxd5 {[%clk 0:02:51]} 8. exd5 {[%clk 0:02:44]}  Bb7 {[%clk 0:02:51]} 9. O-O {[%clk 0:02:41]}  b4 {[%clk 0:02:48]} 10. Ne4 {[%clk 0:02:32]}  Bxd5 {[%clk 0:02:48]} 11. Re1 {[%clk 0:02:16]}  e6 {[%clk 0:02:44]} 12. a3 {[%clk 0:02:05]}  Nxf3+ {[%clk 0:02:20]} 13. Qxf3 {[%clk 0:02:04]}  bxa3 {[%clk 0:02:20]} 14. Bd2 {[%clk 0:01:59]}  Qxd2 {[%clk 0:02:10]} 15. Nxd2 {[%clk 0:01:48]}  Bxf3 {[%clk 0:02:09]} 16. gxf3 {[%clk 0:01:48]}  axb2 {[%clk 0:02:07]} 17. Ra2 {[%clk 0:01:47]}  Be7 {[%clk 0:01:25]} 18. Rxb2 {[%clk 0:01:40]}  Bf6 {[%clk 0:01:25]} 19. Rb3 {[%clk 0:01:40]}  Ke7 {[%clk 0:01:19]} 20. Nc4 {[%clk 0:01:36]}  Rhb8 {[%clk 0:01:09]} 21. Ra3 {[%clk 0:01:35]}  d5 {[%clk 0:01:04]} 22. Ne3 {[%clk 0:01:34]}  Kd7 {[%clk 0:01:02]} 23. c3 {[%clk 0:01:25]}  d4 {[%clk 0:00:38]} 24. Ng4 {[%clk 0:01:16]}  dxc3 {[%clk 0:00:30]} 25. Nxf6+ {[%clk 0:01:16]}  gxf6 {[%clk 0:00:31]} 26. Rc1 {[%clk 0:01:13]}  a5 {[%clk 0:00:29]} 27. Rcxc3 {[%clk 0:01:12]}  Kd6 {[%clk 0:00:30]} 28. Ra2 {[%clk 0:00:58]}  a4 {[%clk 0:00:28]} 29. Kf1 {[%clk 0:00:56]}  Rb4 {[%clk 0:00:24]} 30. Ke2 {[%clk 0:00:43]}  Kd5 {[%clk 0:00:24]} 31. Rac2 {[%clk 0:00:40]}  Ra5 {[%clk 0:00:23]} 32. Ke3 {[%clk 0:00:36]}  Rh4 {[%clk 0:00:17]} 33. Rc4 {[%clk 0:00:30]}  Rxc4 {[%clk 0:00:17]} 34. dxc4+ {[%clk 0:00:29]}  Ke5 {[%clk 0:00:16]} 35. Ra2 {[%clk 0:00:08]}  a3 {[%clk 0:00:16]} 36. h3 {[%clk 0:00:07]}  Ra4 {[%clk 0:00:15]} 37. Ke2 {[%clk 0:00:05]}  Kf4 {[%clk 0:00:14]} 38. Ra1 {[%clk 0:00:04]}  a2 {[%clk 0:00:14]} 39. h4 {[%clk 0:00:03]}  h5 {[%clk 0:00:12]} 0-1


[Site "https://www.chess.com"]

[Event "Titled Tuesday Blitz July 26 Late 2022"]
[White "Romanchuk, Viktor"]
[Black "Vivekananthan, Anish"]
[WhiteFideId "14109271"]
[BlackFideId "2090775"]
[WhiteElo "2242"]
[BlackElo "2778"]
[Result "1/2-1/2"]
[Round "09"]
[TimeControl "180+1"]
[Date "2022.07.26"]
[WhiteClock "0:00:15"]
[BlackClock "0:00:36"]

1. d4 {[%clk 0:03:00]}  d5 {[%clk 0:02:59]} 2. c4 {[%clk 0:03:00]}  dxc4 {[%clk 0:02:59]} 3. e3 {[%clk 0:03:00]}  Nf6 {[%clk 0:02:59]} 4. Bxc4 {[%clk 0:03:00]}  e6 {[%clk 0:03:00]} 5. Nf3 {[%clk 0:03:00]}  c5 {[%clk 0:03:01]} 6. O-O {[%clk 0:02:59]}  a6 {[%clk 0:03:01]} 7. dxc5 {[%clk 0:02:59]}  Bxc5 {[%clk 0:03:00]} 8. Qxd8+ {[%clk 0:02:58]}  Kxd8 {[%clk 0:03:00]} 9. Ne5 {[%clk 0:02:57]}  Ke7 {[%clk 0:03:00]} 10. Be2 {[%clk 0:02:57]}  Nbd7 {[%clk 0:02:43]} 11. Nc4 {[%clk 0:02:55]}  Ne4 {[%clk 0:02:34]} 12. Nbd2 {[%clk 0:02:47]}  Nd6 {[%clk 0:02:34]} 13. Rd1 {[%clk 0:02:33]}  Nxc4 {[%clk 0:02:26]} 14. Nxc4 {[%clk 0:02:32]}  b6 {[%clk 0:02:23]} 15. Bd2 {[%clk 0:01:49]}  a5 {[%clk 0:02:17]} 16. Bf3 {[%clk 0:01:43]}  Rb8 {[%clk 0:02:16]} 17. Bc3 {[%clk 0:01:43]}  f6 {[%clk 0:02:15]} 18. Rab1 {[%clk 0:01:37]}  Ba6 {[%clk 0:02:12]} 19. Nd2 {[%clk 0:01:21]}  Rhc8 {[%clk 0:01:55]} 20. Ne4 {[%clk 0:01:12]}  Bb4 {[%clk 0:01:54]} 21. Rbc1 {[%clk 0:01:05]}  Bxc3 {[%clk 0:01:50]} 22. Nxc3 {[%clk 0:00:53]}  Ne5 {[%clk 0:01:50]} 23. Be2 {[%clk 0:00:49]}  Rxc3 {[%clk 0:01:35]} 24. Bxa6 {[%clk 0:00:46]}  Rxc1 {[%clk 0:01:35]} 25. Rxc1 {[%clk 0:00:45]}  Kd6 {[%clk 0:01:35]} 26. Be2 {[%clk 0:00:38]}  b5 {[%clk 0:01:33]} 27. f4 {[%clk 0:00:36]}  Nd7 {[%clk 0:01:28]} 28. Rd1+ {[%clk 0:00:32]}  Ke7 {[%clk 0:01:27]} 29. Rc1 {[%clk 0:00:31]}  Kd6 {[%clk 0:01:25]} 30. Rd1+ {[%clk 0:00:30]}  Ke7 {[%clk 0:01:24]} 31. Rc1 {[%clk 0:00:30]}  Rb7 {[%clk 0:01:24]} 32. Bf3 {[%clk 0:00:29]}  Ra7 {[%clk 0:01:24]} 33. Kf2 {[%clk 0:00:27]}  g6 {[%clk 0:01:20]} 34. Rc8 {[%clk 0:00:27]}  Kd6 {[%clk 0:01:13]} 35. Rc6+ {[%clk 0:00:25]}  Ke7 {[%clk 0:01:14]} 36. Rc8 {[%clk 0:00:25]}  f5 {[%clk 0:01:10]} 37. Bc6 {[%clk 0:00:23]}  Nf6 {[%clk 0:01:00]} 38. b3 {[%clk 0:00:17]}  b4 {[%clk 0:00:54]} 39. h3 {[%clk 0:00:16]}  Kd6 {[%clk 0:00:53]} 40. Bf3 {[%clk 0:00:15]}  a4 {[%clk 0:00:48]} 41. Rc6+ {[%clk 0:00:13]}  Kd7 {[%clk 0:00:46]} 42. Rb6 {[%clk 0:00:14]}  axb3 {[%clk 0:00:46]} 43. axb3 {[%clk 0:00:14]}  Ra2+ {[%clk 0:00:42]} 44. Kf1 {[%clk 0:00:14]}  Ra1+ {[%clk 0:00:34]} 45. Kf2 {[%clk 0:00:15]}  Ra2+ {[%clk 0:00:35]} 46. Kf1 {[%clk 0:00:15]}  Ra1+ {[%clk 0:00:35]} 47. Kf2 {[%clk 0:00:15]}  Ra2+ {[%clk 0:00:36]} 1/2-1/2


[Site "https://www.chess.com"]

[Event "Titled Tuesday Blitz July 26 Late 2022"]
[White "Rose, Felix"]
[Black "Wang, Isaac"]
[WhiteFideId "5105722"]
[BlackFideId "30977185"]
[WhiteElo "2039"]
[BlackElo "2353"]
[Result "1/2-1/2"]
[Round "09"]
[TimeControl "180+1"]
[Date "2022.07.27"]
[WhiteClock "0:00:25"]
[BlackClock "0:00:11"]

1. e4 {[%clk 0:02:58]}  c5 {[%clk 0:02:56]} 2. Nf3 {[%clk 0:02:58]}  Nc6 {[%clk 0:02:56]} 3. d4 {[%clk 0:02:58]}  cxd4 {[%clk 0:02:57]} 4. Nxd4 {[%clk 0:02:59]}  Nf6 {[%clk 0:02:57]} 5. Nc3 {[%clk 0:03:00]}  e5 {[%clk 0:02:57]} 6. Ndb5 {[%clk 0:02:59]}  d6 {[%clk 0:02:57]} 7. Bg5 {[%clk 0:02:59]}  a6 {[%clk 0:02:57]} 8. Na3 {[%clk 0:02:59]}  b5 {[%clk 0:02:58]} 9. Nd5 {[%clk 0:03:00]}  Be7 {[%clk 0:02:58]} 10. Bxf6 {[%clk 0:03:00]}  Bxf6 {[%clk 0:02:59]} 11. c3 {[%clk 0:03:01]}  O-O {[%clk 0:02:59]} 12. Nc2 {[%clk 0:03:01]}  Rb8 {[%clk 0:02:59]} 13. Be2 {[%clk 0:03:01]}  Bg5 {[%clk 0:02:57]} 14. O-O {[%clk 0:03:01]}  Be6 {[%clk 0:02:56]} 15. Ncb4 {[%clk 0:03:00]}  Nxb4 {[%clk 0:02:50]} 16. Nxb4 {[%clk 0:03:00]}  Qb6 {[%clk 0:02:46]} 17. Nd5 {[%clk 0:02:53]}  Qb7 {[%clk 0:02:40]} 18. Qb3 {[%clk 0:02:31]}  g6 {[%clk 0:02:34]} 19. Rfd1 {[%clk 0:02:30]}  Rfd8 {[%clk 0:02:28]} 20. g3 {[%clk 0:02:26]}  Kg7 {[%clk 0:02:20]} 21. Kg2 {[%clk 0:02:23]}  Rdc8 {[%clk 0:02:04]} 22. h4 {[%clk 0:02:19]}  Bh6 {[%clk 0:02:02]} 23. Rd3 {[%clk 0:02:12]}  Rc4 {[%clk 0:01:53]} 24. Bf3 {[%clk 0:02:07]}  Rc5 {[%clk 0:01:36]} 25. Rad1 {[%clk 0:02:04]}  a5 {[%clk 0:01:15]} 26. a3 {[%clk 0:02:01]}  Rbc8 {[%clk 0:01:08]} 27. Qa2 {[%clk 0:01:56]}  Qa7 {[%clk 0:01:04]} 28. Qb1 {[%clk 0:01:46]}  Rd8 {[%clk 0:01:02]} 29. b4 {[%clk 0:01:44]}  axb4 {[%clk 0:01:00]} 30. axb4 {[%clk 0:01:43]}  Rc4 {[%clk 0:00:59]} 31. Qb2 {[%clk 0:01:34]}  Qb7 {[%clk 0:00:55]} 32. Qe2 {[%clk 0:01:14]}  Qc6 {[%clk 0:00:51]} 33. h5 {[%clk 0:01:02]}  Bg5 {[%clk 0:00:47]} 34. Rh1 {[%clk 0:00:58]}  Bxd5 {[%clk 0:00:35]} 35. Rxd5 {[%clk 0:00:41]}  Rxc3 {[%clk 0:00:32]} 36. hxg6 {[%clk 0:00:38]}  hxg6 {[%clk 0:00:30]} 37. Qxb5 {[%clk 0:00:38]}  Qc7 {[%clk 0:00:27]} 38. Rhd1 {[%clk 0:00:33]}  Qe7 {[%clk 0:00:27]} 39. Qe2 {[%clk 0:00:31]}  Qf6 {[%clk 0:00:23]} 40. R1d3 {[%clk 0:00:30]}  Rc4 {[%clk 0:00:20]} 41. b5 {[%clk 0:00:29]}  Rb4 {[%clk 0:00:19]} 42. Rd1 {[%clk 0:00:23]}  Rd7 {[%clk 0:00:17]} 43. Qd3 {[%clk 0:00:23]}  Qe7 {[%clk 0:00:13]} 44. Rxd6 {[%clk 0:00:22]}  Rxd6 {[%clk 0:00:13]} 45. Qxd6 {[%clk 0:00:22]}  Qxd6 {[%clk 0:00:14]} 46. Rxd6 {[%clk 0:00:23]}  Rxb5 {[%clk 0:00:15]} 47. Rd5 {[%clk 0:00:23]}  Rxd5 {[%clk 0:00:15]} 48. exd5 {[%clk 0:00:24]}  f5 {[%clk 0:00:15]} 49. d6 {[%clk 0:00:23]}  e4 {[%clk 0:00:13]} 50. Bd1 {[%clk 0:00:23]}  Kf6 {[%clk 0:00:14]} 51. Ba4 {[%clk 0:00:24]}  Ke6 {[%clk 0:00:13]} 52. d7 {[%clk 0:00:25]}  Bd8 {[%clk 0:00:13]} 53. Kf1 {[%clk 0:00:24]}  Kd6 {[%clk 0:00:13]} 54. Ke2 {[%clk 0:00:25]}  Kc5 {[%clk 0:00:10]} 55. Bb3 {[%clk 0:00:23]}  Kb4 {[%clk 0:00:09]} 56. Bf7 {[%clk 0:00:23]}  g5 {[%clk 0:00:08]} 57. Bg6 {[%clk 0:00:24]}  f4 {[%clk 0:00:08]} 58. Bxe4 {[%clk 0:00:24]}  fxg3 {[%clk 0:00:08]} 59. fxg3 {[%clk 0:00:22]}  Kc5 {[%clk 0:00:08]} 60. Bf5 {[%clk 0:00:22]}  Kd6 {[%clk 0:00:09]} 61. Kf3 {[%clk 0:00:22]}  Kc7 {[%clk 0:00:09]} 62. Kg4 {[%clk 0:00:22]}  Bf6 {[%clk 0:00:10]} 63. Kh5 {[%clk 0:00:23]}  Bd8 {[%clk 0:00:11]} 64. Kg6 {[%clk 0:00:23]}  Be7 {[%clk 0:00:11]} 65. g4 {[%clk 0:00:23]}  Bd8 {[%clk 0:00:12]} 66. Kf7 {[%clk 0:00:24]}  Kd6 {[%clk 0:00:11]} 67. Ke8 {[%clk 0:00:24]}  Kc7 {[%clk 0:00:10]} 68. Be6 {[%clk 0:00:24]}  Bf6 {[%clk 0:00:11]} 69. Bf5 {[%clk 0:00:24]}  Bd8 {[%clk 0:00:10]} 70. Be4 {[%clk 0:00:24]}  Bf6 {[%clk 0:00:10]} 71. Bf5 {[%clk 0:00:25]}  Bd8 {[%clk 0:00:11]} 1/2-1/2


[Site "https://www.chess.com"]

[Event "Titled Tuesday Blitz July 26 Late 2022"]
[White "Sanchez Alarcon, Juan"]
[Black "Arencibia Monduy, Antonio"]
[WhiteFideId "3401332"]
[BlackFideId "3507939"]
[WhiteElo "2164"]
[BlackElo "2501"]
[Result "1-0"]
[Round "09"]
[TimeControl "180+1"]
[Date "2022.07.27"]
[WhiteClock "0:00:35"]
[BlackClock "0:00:01"]

1. e4 {[%clk 0:03:00]}  c5 {[%clk 0:03:00]} 2. c3 {[%clk 0:03:00]}  d6 {[%clk 0:02:59]} 3. d4 {[%clk 0:02:59]}  cxd4 {[%clk 0:02:59]} 4. cxd4 {[%clk 0:02:59]}  d5 {[%clk 0:03:00]} 5. exd5 {[%clk 0:02:58]}  Nf6 {[%clk 0:02:58]} 6. Nf3 {[%clk 0:02:57]}  Nxd5 {[%clk 0:02:58]} 7. Nc3 {[%clk 0:02:56]}  e6 {[%clk 0:02:58]} 8. Bd3 {[%clk 0:02:54]}  Be7 {[%clk 0:02:52]} 9. O-O {[%clk 0:02:54]}  Nc6 {[%clk 0:02:51]} 10. Qe2 {[%clk 0:02:48]}  Bf6 {[%clk 0:02:42]} 11. Nxd5 {[%clk 0:02:44]}  Qxd5 {[%clk 0:02:42]} 12. Be3 {[%clk 0:02:43]}  O-O {[%clk 0:02:38]} 13. Rfd1 {[%clk 0:02:40]}  Rd8 {[%clk 0:02:36]} 14. Bc4 {[%clk 0:02:39]}  Qd6 {[%clk 0:02:35]} 15. Rac1 {[%clk 0:02:38]}  Ne7 {[%clk 0:02:34]} 16. Bg5 {[%clk 0:02:29]}  Bxg5 {[%clk 0:02:30]} 17. Nxg5 {[%clk 0:02:29]}  h6 {[%clk 0:02:20]} 18. Ne4 {[%clk 0:02:28]}  Qf4 {[%clk 0:02:11]} 19. Rc3 {[%clk 0:02:22]}  b6 {[%clk 0:02:02]} 20. Rf3 {[%clk 0:02:20]}  Qc7 {[%clk 0:01:57]} 21. Rc3 {[%clk 0:02:16]}  Qd7 {[%clk 0:01:46]} 22. Qg4 {[%clk 0:02:07]}  Ng6 {[%clk 0:01:06]} 23. d5 {[%clk 0:01:56]}  Bb7 {[%clk 0:00:43]} 24. Rcd3 {[%clk 0:01:45]}  exd5 {[%clk 0:00:34]} 25. Qxd7 {[%clk 0:01:43]}  Rxd7 {[%clk 0:00:35]} 26. Bxd5 {[%clk 0:01:43]}  Bxd5 {[%clk 0:00:31]} 27. Rxd5 {[%clk 0:01:42]}  Rxd5 {[%clk 0:00:31]} 28. Rxd5 {[%clk 0:01:42]}  Re8 {[%clk 0:00:30]} 29. f3 {[%clk 0:01:41]}  Re7 {[%clk 0:00:28]} 30. Kf2 {[%clk 0:01:38]}  Nf4 {[%clk 0:00:27]} 31. Rd8+ {[%clk 0:01:36]}  Kh7 {[%clk 0:00:26]} 32. b4 {[%clk 0:01:22]}  f5 {[%clk 0:00:25]} 33. Ng3 {[%clk 0:01:20]}  g6 {[%clk 0:00:23]} 34. Rd4 {[%clk 0:01:18]}  Ne6 {[%clk 0:00:21]} 35. Rd6 {[%clk 0:01:17]}  Kg7 {[%clk 0:00:20]} 36. Ne2 {[%clk 0:01:16]}  Kf7 {[%clk 0:00:19]} 37. Nd4 {[%clk 0:01:12]}  Nf4 {[%clk 0:00:18]} 38. a3 {[%clk 0:00:59]}  Nd3+ {[%clk 0:00:13]} 39. Kg3 {[%clk 0:00:56]}  Ne1 {[%clk 0:00:08]} 40. h4 {[%clk 0:00:53]}  h5 {[%clk 0:00:07]} 41. Kf2 {[%clk 0:00:47]}  Nd3+ {[%clk 0:00:06]} 42. Kg3 {[%clk 0:00:47]}  f4+ {[%clk 0:00:06]} 43. Kh3 {[%clk 0:00:46]}  Nf2+ {[%clk 0:00:06]} 44. Kh2 {[%clk 0:00:45]}  Re1 {[%clk 0:00:06]} 45. g3 {[%clk 0:00:42]}  Rd1 {[%clk 0:00:01]} 46. gxf4 {[%clk 0:00:40]}  Nd3 {[%clk 0:00:01]} 47. Nc6 {[%clk 0:00:35]} 1-0


[Site "https://www.chess.com"]

[Event "Titled Tuesday Blitz July 26 Late 2022"]
[White "Sibilio, Mario"]
[Black "Melikhov, Evgeny V."]
[WhiteFideId "800422"]
[BlackFideId "4122046"]
[WhiteElo "2296"]
[BlackElo "1995"]
[Result "0-1"]
[Round "09"]
[TimeControl "180+1"]
[Date "2022.07.27"]
[WhiteClock "0:00:12"]
[BlackClock "0:00:23"]

1. d4 {[%clk 0:03:00]}  Nf6 {[%clk 0:02:59]} 2. c4 {[%clk 0:02:57]}  e6 {[%clk 0:02:59]} 3. Nc3 {[%clk 0:02:53]}  Bb4 {[%clk 0:02:58]} 4. Bg5 {[%clk 0:02:53]}  c5 {[%clk 0:02:56]} 5. d5 {[%clk 0:02:52]}  d6 {[%clk 0:02:51]} 6. e3 {[%clk 0:02:47]}  exd5 {[%clk 0:02:45]} 7. cxd5 {[%clk 0:02:45]}  Nbd7 {[%clk 0:02:45]} 8. Bb5 {[%clk 0:02:30]}  Qa5 {[%clk 0:02:42]} 9. Bxd7+ {[%clk 0:02:25]}  Nxd7 {[%clk 0:02:38]} 10. Ne2 {[%clk 0:02:24]}  Ne5 {[%clk 0:02:01]} 11. a3 {[%clk 0:02:07]}  Bxc3+ {[%clk 0:02:00]} 12. Nxc3 {[%clk 0:02:07]}  Qa6 {[%clk 0:01:46]} 13. Qe2 {[%clk 0:02:06]}  Qxe2+ {[%clk 0:01:35]} 14. Kxe2 {[%clk 0:02:03]}  a6 {[%clk 0:01:34]} 15. Bf4 {[%clk 0:01:57]}  f6 {[%clk 0:01:31]} 16. a4 {[%clk 0:01:51]}  b6 {[%clk 0:01:28]} 17. Bg3 {[%clk 0:01:40]}  Bd7 {[%clk 0:01:27]} 18. b3 {[%clk 0:01:33]}  Ke7 {[%clk 0:01:24]} 19. f4 {[%clk 0:01:33]}  Nf7 {[%clk 0:01:22]} 20. e4 {[%clk 0:01:17]}  b5 {[%clk 0:01:22]} 21. Kd3 {[%clk 0:01:08]}  Rhb8 {[%clk 0:01:15]} 22. axb5 {[%clk 0:00:56]}  axb5 {[%clk 0:01:15]} 23. Rhe1 {[%clk 0:00:54]}  b4 {[%clk 0:01:12]} 24. Ne2 {[%clk 0:00:52]}  Bb5+ {[%clk 0:01:09]} 25. Kd2 {[%clk 0:00:52]}  Ra3 {[%clk 0:01:05]} 26. Rxa3 {[%clk 0:00:49]}  bxa3 {[%clk 0:01:04]} 27. Nc3 {[%clk 0:00:48]}  Bd7 {[%clk 0:01:00]} 28. Kc2 {[%clk 0:00:47]}  c4 {[%clk 0:00:49]} 29. bxc4 {[%clk 0:00:32]}  Rb2+ {[%clk 0:00:48]} 30. Kd3 {[%clk 0:00:32]}  Rxg2 {[%clk 0:00:42]} 31. Ra1 {[%clk 0:00:32]}  h5 {[%clk 0:00:42]} 32. Ra2 {[%clk 0:00:26]}  Rxa2 {[%clk 0:00:38]} 33. Nxa2 {[%clk 0:00:25]}  g5 {[%clk 0:00:37]} 34. Kc3 {[%clk 0:00:21]}  h4 {[%clk 0:00:37]} 35. Bf2 {[%clk 0:00:19]}  gxf4 {[%clk 0:00:30]} 36. Bxh4 {[%clk 0:00:18]}  Ne5 {[%clk 0:00:29]} 37. Kb3 {[%clk 0:00:15]}  f3 {[%clk 0:00:28]} 38. Nc1 {[%clk 0:00:14]}  a2 {[%clk 0:00:24]} 39. Kxa2 {[%clk 0:00:14]}  Nxc4 {[%clk 0:00:23]} 40. Kb3 {[%clk 0:00:13]}  Nd2+ {[%clk 0:00:23]} 41. Kc3 {[%clk 0:00:12]}  Nxe4+ {[%clk 0:00:24]} 42. Kd4 {[%clk 0:00:12]}  f2 {[%clk 0:00:23]} 0-1


[Site "https://www.chess.com"]